Cogmind - Beta 9.6 @@@ ROGUE MODE // 2020.08.29 @ 23:03:08 Player: Airus Result: Destroyed by Combat Programmer with EMDS Performance ------------- Evolutions (6) 3000 Regions Visited (21) 4200 Robots Destroyed (39) 195 Value Destroyed (1299) 1299 Prototype IDs (216) 4320 Alien Tech Used (1) 200 Bonus (5529) 5529 TOTAL SCORE: 18743 Bonus ------- Met Data Miner 300 Used Data Conduit 3000 Met Imprinter 300 Met Warlord at Base 500 MAIN.C Attacked Warlord 500 Pursued by Intercept 1000 Friendly Fire -71 Cogmind --------- Core Integrity 0/1150 Matter 300/300 Energy 99/100 System Corruption 11% Temperature Cool (0) Movement Core (50) Location -4/Armory Parts ------- > --- POWER (1) -------- (None) > --- PROPULSION (3) --- (None) > --- UTILITY (13) ----- (None) > --- WEAPON (2) ------- (None) > --- INVENTORY (4) ---- Long-range Sensor Array Advanced Force Booster Peak State ------------ > --- POWER ------------ Makeshift Power Source > --- PROPULSION ------- Makeshift Flight Unit Field Propulsion Array > --- UTILITY ---------- Advanced Power Amplifier Advanced Weight Redist. System Advanced Signal Interpreter Improved Melee Analysis Suite Advanced Melee Analysis Suite Experimental Armor Integrity Analyzer Advanced Force Booster Advanced Reaction Control System Hardened Medium Armor Plating Layered Light Armor Plating Advanced Hacking Suite System Mapper Quantum Router > --- WEAPON ----------- Heavy Rocket Launcher Makeshift Spear > --- INVENTORY -------- Field Propulsion Array Long-range Sensor Array Makeshift Sword [Rating: 114] Favorites ----------- Power Makeshift Power Source Engine Makeshift Power Source Propulsion Improved Flight Unit Flight Unit Improved Flight Unit Utility Advanced Signal Interpreter Device Advanced Sensor Array Processor Advanced Signal Interpreter Hackware System Mapper Protection Hardened Medium Armor Plating Weapon Makeshift Sword Launcher Mini Grenade Launcher Impact Weapon Maul Slashing Weapon Makeshift Sword Piercing Weapon Makeshift Spear Build | -11 -10 -9 -8 -8 -7 -7 -7 -7 -6 -6 -6 -6 -6 -5 -5 -5 -5 -5 -4 -4 -4 ------- Run | Scr Mat Mat Mat Sto Fac Low Low Dat Pro Fac Low Low Zio Pro Fac Upp Upp War Pro Fac Arm Slots Evolved 12 | . . 2 2 . 2 . . . . 2 . . . . 2 . . . . 2 . Power . | . . . . . . . . . . . . . . . . . . . . . . Propulsion 1 | . . . . . . . . . . 1 . . . . . . . . . . . Utility 11 | . . 2 2 . 2 . . . . 1 . . . . 2 . . . . 2 . Weapon . | . . . . . . . . . . . . . . . . . . . . . . Parts Attached 76 | . 3 2 4 5 10 3 . 1 2 2 2 5 6 2 4 2 8 . 2 4 9 Power 3 | . 1 . . 1 . . . . . . . . 1 . . . . . . . . Engine 3 | . 1 . . 1 . . . . . . . . 1 . . . . . . . . Core . | . . . . . . . . . . . . . . . . . . . . . . Reactor . | . . . . . . . . . . . . . . . . . . . . . . Propulsion 8 | . . 1 . 1 . . . . . . . 1 1 . 1 . . . . 1 2 Treads . | . . . . . . . . . . . . . . . . . . . . . . Leg . | . . . . . . . . . . . . . . . . . . . . . . Wheel . | . . . . . . . . . . . . . . . . . . . . . . Hover . | . . . . . . . . . . . . . . . . . . . . . . Flight 8 | . . 1 . 1 . . . . . . . 1 1 . 1 . . . . 1 2 Utility 34 | . 1 . 3 3 8 1 . 1 . 2 1 2 3 . 3 . . . . 2 4 Device 12 | . 1 . 1 . 2 1 . . . . . 1 . . 1 . . . . 1 4 Storage . | . . . . . . . . . . . . . . . . . . . . . . Processor 10 | . . . 1 1 5 . . . . 1 . . 1 . . . . . . 1 . Hackware 9 | . . . 1 2 1 . . 1 . 1 1 1 1 . . . . . . . . Protection 3 | . . . . . . . . . . . . . 1 . 2 . . . . . . Artifact . | . . . . . . . . . . . . . . . . . . . . . . Weapon 31 | . 1 1 1 . 2 2 . . 2 . 1 2 1 2 . 2 8 . 2 1 3 Energy Gun . | . . . . . . . . . . . . . . . . . . . . . . Energy Cannon . | . . . . . . . . . . . . . . . . . . . . . . Ballistic Gun . | . . . . . . . . . . . . . . . . . . . . . . Ballistic Cannon . | . . . . . . . . . . . . . . . . . . . . . . Launcher 13 | . . 1 . . 1 . . . 1 . . 1 . 1 . 1 4 . 1 1 1 Special Weapon . | . . . . . . . . . . . . . . . . . . . . . . Impact Weapon 1 | . 1 . . . . . . . . . . . . . . . . . . . . Slashing Weapon 8 | . . . 1 . 1 2 . . 1 . . . . . . . 2 . . . 1 Piercing Weapon 9 | . . . . . . . . . . . 1 1 1 1 . 1 2 . 1 . 1 Special Melee Weapon . | . . . . . . . . . . . . . . . . . . . . . . Unidentified Prototypes 4 | . . . . 1 . . . 1 . 1 . 1 . . . . . . . . . Parts Lost 23 | . . . 1 1 . 1 . . . . 1 . . . . . . . . . 19 Power 2 | . . . . 1 . . . . . . . . . . . . . . . . 1 Propulsion 5 | . . . 1 . . . . . . . . . . . . . . . . . 4 Utility 13 | . . . . . . 1 . . . . . . . . . . . . . . 12 Weapon 3 | . . . . . . . . . . . 1 . . . . . . . . . 2 Highest Loss Streak 19 | . . . 1 1 . 1 . . . . 1 . . . . . . . . . 19 Average Slot Usage (%) 82 | . 12 22 34 65 80 83 84 84 84 80 74 78 92 93 93 94 94 94 94 93 72 Engine 2 | . 7 . . 3 . . . . . . . . 5 6 5 5 5 5 5 5 3 Flight 8 | . . 9 9 6 7 7 7 7 7 6 6 5 12 13 11 11 11 11 11 10 7 Device 13 | . 1 . 8 9 8 14 15 15 15 13 13 12 13 13 17 17 17 17 17 20 15 Processor 19 | . . . 7 15 26 23 23 23 23 20 20 20 20 20 17 17 17 17 17 21 17 Hackware 19 | . . . . 21 24 23 23 23 23 26 26 25 25 20 17 17 17 17 17 15 12 Protection 4 | . . . . . . . . . . . . . . 6 10 11 11 11 11 10 7 Slashing Weapon 7 | . . . 8 9 9 14 15 15 15 13 6 6 6 6 5 5 4 5 5 3 . Piercing Weapon 2 | . . . . . . . . . . . . 5 6 5 5 4 4 5 5 5 3 Naked Turns 23 | . 9 . . . . . . . . . . . . . . . . . . . 14 Heaviest Build 32 | . 3 6 3 6 6 6 6 6 6 6 6 6 14 14 22 27 32 22 22 30 32 Greatest Support 40 | 3 3 4 4 6 6 6 6 6 6 6 6 6 14 14 28 28 37 28 28 31 40 Greatest Overweight (x) 1 | . . 1 . . . 1 . . . . . 1 . . . . . . . . 1 Average Overweight (x) . | . . . . . . . . . . . . . . . . . . . . . . Largest Inventory Capacity 4 | 4 4 4 4 4 4 4 4 4 4 4 4 4 4 4 4 4 4 4 4 4 4 Average Capacity 4 | 4 4 4 4 4 4 4 4 4 4 4 4 4 4 4 4 4 4 4 4 4 4 Most Carried 4 | . 4 4 4 4 4 4 3 4 4 4 4 4 4 4 4 4 4 4 4 4 4 Average Carried 3 | . 1 3 3 3 3 3 3 3 4 3 4 3 4 4 3 3 4 4 4 3 3 Final Capacity 4 | 4 4 4 4 4 4 4 4 4 4 4 4 4 4 4 4 4 4 4 4 4 4 Final Carried 4 | . 4 4 4 3 4 3 3 4 4 4 4 4 4 4 4 4 4 4 4 4 2 Class Distribution -------------------- 57% | Hacker-Scout 19% | Wizard-Scout 15% | Hacker-Mutant 6% | Mutant Dominant Class ---------------- Mutant | -10/Materials Mutant | -9/Materials Mutant | -8/Materials Hacker-Mutant | -8/Storage Hacker-Mutant | -7/Factory Hacker-Scout | -7/Lower Caves Hacker-Scout | -7/Lower Caves Hacker-Scout | -7/Data Miner Hacker-Scout | -6/Proximity Caves Wizard-Scout | -6/Factory Wizard-Scout | -6/Lower Caves Wizard-Scout | -6/Lower Caves Wizard-Scout | -6/Zion Hacker-Scout | -5/Proximity Caves Hacker-Scout | -5/Factory Hacker-Scout | -5/Upper Caves Hacker-Scout | -5/Upper Caves Hacker-Scout | -5/Warlord Hacker-Scout | -4/Proximity Caves Hacker-Scout | -4/Factory Hacker-Mutant | -4/Armory Resources | -11 -10 -9 -8 -8 -7 -7 -7 -7 -6 -6 -6 -6 -6 -5 -5 -5 -5 -5 -4 -4 -4 ----------- Run | Scr Mat Mat Mat Sto Fac Low Low Dat Pro Fac Low Low Zio Pro Fac Upp Upp War Pro Fac Arm Matter Collected 1144 | 195 11 36 . . 194 40 . . . . 76 47 35 . . 191 81 90 47 29 72 Remotely . | . . . . . . . . . . . . . . . . . . . . . . Salvage Created 796 | . 27 51 . . 46 40 . 20 117 . . 20 . 23 . 68 84 . 64 67 169 Parts 58 | . 2 6 . . 6 4 . 2 5 . . 4 . 1 . 5 7 . 6 8 2 Haulers Intercepted . | . . . . . . . . . . . . . . . . . . . . . . Recyclers Shooed . | . . . . . . . . . . . . . . . . . . . . . . Parts Field Recycled . | . . . . . . . . . . . . . . . . . . . . . . Retrieved Matter . | . . . . . . . . . . . . . . . . . . . . . . Parts Self-Destructed 91 | . . . . . . 4 2 . 5 . 6 3 . 1 . 4 4 57 5 . . Prevented 2 | . . . . . . . . . . . . . . . . . . 2 . . . Kills | -11 -10 -9 -8 -8 -7 -7 -7 -7 -6 -6 -6 -6 -6 -5 -5 -5 -5 -5 -4 -4 -4 ------- Run | Scr Mat Mat Mat Sto Fac Low Low Dat Pro Fac Low Low Zio Pro Fac Upp Upp War Pro Fac Arm Combat Hostiles Destroyed 35 | . . 4 . . 1 1 . . 3 . . 3 . 2 . 4 5 . 5 4 3 Melee 5 | . . . . . 1 1 . . . . . . . . . 1 . . . . 2 AOE 30 | . . 4 . . . . . . 3 . . 3 . 2 . 3 5 . 5 4 1 Classes Destroyed 8 | . 1 2 . . 1 . . . 2 . . . . . . . 1 . . 1 . Builder 1 | . . . . . . . . . . . . . . . . . . . . 1 . Watcher 1 | . 1 . . . . . . . . . . . . . . . . . . . . Swarmer 27 | . . 3 . . . . . . 1 . . 3 . 2 . 4 5 . 5 4 . Grunt 2 | . . 1 . . . . . . . . . . . . . . . . . . 1 Brawler 1 | . . . . . . . . . 1 . . . . . . . . . . . . Duelist 1 | . . . . . . . . . 1 . . . . . . . . . . . . Programmer 2 | . . . . . 1 1 . . . . . . . . . . . . . . . Tracker 2 | . . . . . . . . . . . . . . . . . . . . . 2 Samaritan 1 | . . . . . . . . . . . . . . . . . 1 . . . . Best Kill Streak 5 | . 1 4 . . 1 1 . 1 3 . . 3 . 2 . 4 4 . 5 5 3 Combat Bots Only 5 | . . 4 . . 1 1 . . 3 . . 3 . 2 . 4 4 . 5 4 3 Max Kills in Single Turn 5 | . 1 2 . . 1 1 . 1 3 . . 2 . 1 . 3 3 . 5 4 1 Gunslinging . | . . . . . . . . . . . . . . . . . . . . . . Exploded 5 | . . 2 . . . . . . 3 . . 2 . 1 . 3 2 . 5 3 1 Melee 1 | . . . . . 1 1 . . . . . . . . . 1 . . . . 1 Uniques/NPCs Destroyed 1 | . . . . . . . . 1 . . . . . . . . . . . . . Data Miner (-7/Data Miner) Combat | -11 -10 -9 -8 -8 -7 -7 -7 -7 -6 -6 -6 -6 -6 -5 -5 -5 -5 -5 -4 -4 -4 -------- Run | Scr Mat Mat Mat Sto Fac Low Low Dat Pro Fac Low Low Zio Pro Fac Upp Upp War Pro Fac Arm Damage Taken 3262 | . 7 77 136 109 44 74 . . 102 . 18 55 . 112 67 94 65 . . 104 2198 Core 1576 | . . 51 100 47 . 16 . . 50 . . 30 . 57 . 33 . . . 24 1168 Absorbed by Shields . | . . . . . . . . . . . . . . . . . . . . . . Core Remaining (%) 90 | 100 100 87 . 73 . . . . 90 . . . . 89 . . . . 96 . . Volleys Fired 18 | . . 2 . . . . . . 1 . . 3 . 2 . 1 3 . 1 3 2 Largest 2 | . . 1 . . . . . . 1 . . 1 . 1 . 1 2 . 1 1 1 Hottest 78 | . . 30 . . . . . . 39 . . 39 . 39 . 39 78 . 39 39 39 Shots Fired 19 | . . 2 . . . . . . 1 . . 3 . 2 . 1 4 . 1 3 2 Gun . | . . . . . . . . . . . . . . . . . . . . . . Cannon . | . . . . . . . . . . . . . . . . . . . . . . Launcher 19 | . . 2 . . . . . . 1 . . 3 . 2 . 1 4 . 1 3 2 Special . | . . . . . . . . . . . . . . . . . . . . . . Kinetic . | . . . . . . . . . . . . . . . . . . . . . . Thermal . | . . . . . . . . . . . . . . . . . . . . . . Explosive 19 | . . 2 . . . . . . 1 . . 3 . 2 . 1 4 . 1 3 2 Electromagnetic . | . . . . . . . . . . . . . . . . . . . . . . Robot Hit Streak 2 | . . . . . . . . . . . . . . 1 . 2 2 . . . 1 Robot Miss Streak 6 | . . 2 . . . . . . . . . 5 . 6 . . 1 . 2 . . Penetration Max . | . . . . . . . . . . . . . . . . . . . . . . Secondary Targets . | . . . . . . . . . . . . . . . . . . . . . . Shots Hit Robots 19 | . . . 1 . 1 5 . 1 . . . . . 1 . 2 2 . . . 6 Core Hits 54 | . 1 4 . . 1 1 . 1 4 . . 3 . 3 . 4 6 . 6 6 14 Critical Hits 1 | . . . . . . . . . . . . . . . . . . . . . 1 Critical Kills 1 | . . . . . . . . . . . . . . . . . . . . . 1 Critical Parts Destroyed . | . . . . . . . . . . . . . . . . . . . . . . Melee Attacks 198 | . . 4 15 15 27 5 . 20 14 13 . 10 . 6 13 13 13 . 2 15 13 Impact 4 | . . 4 . . . . . . . . . . . . . . . . . . . Slashing 147 | . . . 15 15 27 5 . 20 14 13 . 9 . 1 3 7 11 . . . 7 Piercing 47 | . . . . . . . . . . . . 1 . 5 10 6 2 . 2 15 6 Sneak Attacks 1 | . . . . . . . . 1 . . . . . . . . . . . . . Combat Hostiles . | . . . . . . . . . . . . . . . . . . . . . . Follow-up Attacks 2 | . . . . . . 1 . . . . . . . . . . . . . . 1 Damage Inflicted 3361 | . 14 127 32 . 32 202 . 124 257 . . 359 . 215 . 301 539 . 277 258 624 Guns . | . . . . . . . . . . . . . . . . . . . . . . Cannons . | . . . . . . . . . . . . . . . . . . . . . . Explosions 2691 | . . 127 . . . . . . 257 . . 359 . 215 . 261 539 . 277 258 398 Melee 621 | . . . 32 . 32 202 . 124 . . . . . . . 40 . . . . 191 Ramming 49 | . 14 . . . . . . . . . . . . . . . . . . . 35 Kinetic . | . . . . . . . . . . . . . . . . . . . . . . Thermal . | . . . . . . . . . . . . . . . . . . . . . . Explosive 2691 | . . 127 . . . . . . 257 . . 359 . 215 . 261 539 . 277 258 398 Electromagnetic . | . . . . . . . . . . . . . . . . . . . . . . Impact . | . . . . . . . . . . . . . . . . . . . . . . Slashing 591 | . . . 32 . 32 202 . 124 . . . . . . . 40 . . . . 161 Piercing 30 | . . . . . . . . . . . . . . . . . . . . . 30 Highest Corruption 10 | . . . . . . 1 1 1 1 . 4 4 4 . . . . . . . 10 Average Corruption 2 | . . . . . . 1 1 1 1 . 4 4 4 . . . . . . . 4 Corruption Purged . | . . . . . . . . . . . . . . . . . . . . . . Effects 14 | . . . . . . . 1 . . . 3 9 1 . . . . . . . . Message Errors 4 | . . . . . . . 1 . . . . 3 . . . . . . . . . Matter Fused 5 | . . . . . . . . . . . 1 4 . . . . . . . . . Heat Flow Errors 1 | . . . . . . . . . . . 1 . . . . . . . . . . Energy Discharges 2 | . . . . . . . . . . . . 1 1 . . . . . . . . Data Loss (minor) 2 | . . . . . . . . . . . 1 1 . . . . . . . . . Overload Shots . | . . . . . . . . . . . . . . . . . . . . . . Overflow Damage 171 | . . . . . . . . . 19 . . 30 . . . 6 73 . 14 . 29 Projectiles . | . . . . . . . . . . . . . . . . . . . . . . Explosions 171 | . . . . . . . . . 19 . . 30 . . . 6 73 . 14 . 29 Melee . | . . . . . . . . . . . . . . . . . . . . . . Knockbacks . | . . . . . . . . . . . . . . . . . . . . . . Impact . | . . . . . . . . . . . . . . . . . . . . . . Kinetic . | . . . . . . . . . . . . . . . . . . . . . . Secondary . | . . . . . . . . . . . . . . . . . . . . . . Self-Inflicted Damage 82 | . 7 28 . . . . . . . . . . . . . . . . . 30 17 Shots 2 | . . 1 . . . . . . . . . . . . . . . . . 1 . Rammed 8 | . 1 . . . . . . . . . . . . . . . . . . . 7 Targets Rammed 8 | . 1 . . . . . . . . . . . . . . . . . . . 7 Kicked . | . . . . . . . . . . . . . . . . . . . . . . Crushed . | . . . . . . . . . . . . . . . . . . . . . . Highest Temperature 235 | . . . . . . . . . . . 235 . . . . . 23 . . . 52 Average Temperature 54 | . . . . . . . . . . . 129 . . . . . 13 . . . 26 Received Heat Transfer 279 | . . . 36 54 . . . . 27 . . . . . 18 9 . . . 9 126 Siege Activations . | . . . . . . . . . . . . . . . . . . . . . . Robots Corrupted . | . . . . . . . . . . . . . . . . . . . . . . Combat Hostiles . | . . . . . . . . . . . . . . . . . . . . . . Parts Fried . | . . . . . . . . . . . . . . . . . . . . . . Impact Corruptions . | . . . . . . . . . . . . . . . . . . . . . . Robots Melted . | . . . . . . . . . . . . . . . . . . . . . . Combat Hostiles . | . . . . . . . . . . . . . . . . . . . . . . Parts Melted . | . . . . . . . . . . . . . . . . . . . . . . Heat Transferred . | . . . . . . . . . . . . . . . . . . . . . . Parts Sabotaged . | . . . . . . . . . . . . . . . . . . . . . . Parts Stolen . | . . . . . . . . . . . . . . . . . . . . . . Parts Stripped . | . . . . . . . . . . . . . . . . . . . . . . Power Chain Reactions . | . . . . . . . . . . . . . . . . . . . . . . Missiles Intercepted . | . . . . . . . . . . . . . . . . . . . . . . Alert | -11 -10 -9 -8 -8 -7 -7 -7 -7 -6 -6 -6 -6 -6 -5 -5 -5 -5 -5 -4 -4 -4 ------- Run | Scr Mat Mat Mat Sto Fac Low Low Dat Pro Fac Low Low Zio Pro Fac Upp Upp War Pro Fac Arm Peak Influence 378 | . 22 159 151 166 184 . . . . 42 . . . . 88 . . . . 378 203 Average Influence 76 | . 10 47 107 111 69 . . . . 33 . . . . 56 . . . . 123 93 Maximum Alert Level 1 | . . . . . . . . . . . . . . . . . . . . 1 1 Low Security (%) 96 | 100 100 100 100 100 100 . . . . 100 . . . . 100 . . . . 70 97 Level 1 3 | . . . . . . . . . . . . . . . . . . . . 29 2 Level 2 . | . . . . . . . . . . . . . . . . . . . . . . Level 3 . | . . . . . . . . . . . . . . . . . . . . . . Level 4 . | . . . . . . . . . . . . . . . . . . . . . . Level 5 . | . . . . . . . . . . . . . . . . . . . . . . High Security . | . . . . . . . . . . . . . . . . . . . . . . Max Security . | . . . . . . . . . . . . . . . . . . . . . . Squads Dispatched 12 | . 1 1 . 1 2 . . . . 1 . . . . 2 . . . . . 4 Investigation 1 | . . . . . . . . . . 1 . . . . . . . . . . . Extermination 1 | . . . . . 1 . . . . . . . . . . . . . . . . Reinforcement 6 | . 1 1 . 1 1 . . . . . . . . . 1 . . . . . 1 Assault . | . . . . . . . . . . . . . . . . . . . . . . Garrison . | . . . . . . . . . . . . . . . . . . . . . . Intercept 4 | . . . . . . . . . . . . . . . 1 . . . . . 3 Construction Impeded . | . . . . . . . . . . . . . . . . . . . . . . Haulers Reinforced . | . . . . . . . . . . . . . . . . . . . . . . Stealth | -11 -10 -9 -8 -8 -7 -7 -7 -7 -6 -6 -6 -6 -6 -5 -5 -5 -5 -5 -4 -4 -4 --------- Run | Scr Mat Mat Mat Sto Fac Low Low Dat Pro Fac Low Low Zio Pro Fac Upp Upp War Pro Fac Arm Distress Signals 2 | . . . . 1 . . . . . . . . . . . . . . . 1 . Communications Jammed . | . . . . . . . . . . . . . . . . . . . . . . Distress Signals . | . . . . . . . . . . . . . . . . . . . . . . Times Spotted 124 | . 4 9 11 15 16 2 . 4 7 2 3 3 . 4 5 6 3 . 2 10 18 Peak Tracking Total 18 | . 2 5 6 18 4 1 . 4 7 1 3 3 . 3 5 4 2 . 6 13 9 Tactical Retreats 17 | . . 1 2 1 5 . . . 1 1 . . . 2 . 1 . . 1 1 1 Traps | -11 -10 -9 -8 -8 -7 -7 -7 -7 -6 -6 -6 -6 -6 -5 -5 -5 -5 -5 -4 -4 -4 ------- Run | Scr Mat Mat Mat Sto Fac Low Low Dat Pro Fac Low Low Zio Pro Fac Upp Upp War Pro Fac Arm Traps Triggered 1 | . . . . . 1 . . . . . . . . . . . . . . . . Indirectly . | . . . . . . . . . . . . . . . . . . . . . . Trap Hack Attempts . | . . . . . . . . . . . . . . . . . . . . . . Triggered . | . . . . . . . . . . . . . . . . . . . . . . Disarmed . | . . . . . . . . . . . . . . . . . . . . . . Reprogrammed . | . . . . . . . . . . . . . . . . . . . . . . Reused . | . . . . . . . . . . . . . . . . . . . . . . Traps Extracted . | . . . . . . . . . . . . . . . . . . . . . . Installed . | . . . . . . . . . . . . . . . . . . . . . . Triggered 11 | . . . . . . . 1 . 1 . . . . . . . 2 7 . . . Machines | -11 -10 -9 -8 -8 -7 -7 -7 -7 -6 -6 -6 -6 -6 -5 -5 -5 -5 -5 -4 -4 -4 ---------- Run | Scr Mat Mat Mat Sto Fac Low Low Dat Pro Fac Low Low Zio Pro Fac Upp Upp War Pro Fac Arm Machines Disabled 10 | . . . . 1 . . . . . . . 1 . . . . . . . 7 1 Max in Single Turn 4 | . . . . 1 . . . . . . . 1 . . . . . . . 4 1 Machines Sabotaged . | . . . . . . . . . . . . . . . . . . . . . . Garrisons Compromised . | . . . . . . . . . . . . . . . . . . . . . . Overloaded Fab Kills . | . . . . . . . . . . . . . . . . . . . . . . Fab Network Shutdowns . | . . . . . . . . . . . . . . . . . . . . . . Hacking | -11 -10 -9 -8 -8 -7 -7 -7 -7 -6 -6 -6 -6 -6 -5 -5 -5 -5 -5 -4 -4 -4 --------- Run | Scr Mat Mat Mat Sto Fac Low Low Dat Pro Fac Low Low Zio Pro Fac Upp Upp War Pro Fac Arm Machines Accessed 29 | . . 2 1 3 5 1 . . . . 1 2 1 . . 1 1 3 1 3 4 Terminals 17 | . . 2 1 3 4 . . . . . . . . . . . . . 1 3 3 Fabricators 2 | . . . . . 1 . . . . . . . . . . . . . . . 1 Repair Stations . | . . . . . . . . . . . . . . . . . . . . . . Recycling Units . | . . . . . . . . . . . . . . . . . . . . . . Scanalyzers . | . . . . . . . . . . . . . . . . . . . . . . Garrison Access . | . . . . . . . . . . . . . . . . . . . . . . Total Hacks 91 | . . 6 3 13 17 1 . . . . 11 2 5 . . 1 1 4 2 9 16 Successful 75 | . . 4 2 8 11 1 . . . . 11 2 5 . . 1 1 4 2 9 14 Failed 16 | . . 2 1 5 6 . . . . . . . . . . . . . . . 2 Catastrophic 1 | . . . . . 1 . . . . . . . . . . . . . . . . Database Lockouts . | . . . . . . . . . . . . . . . . . . . . . . Manual 50 | . . 6 3 13 12 . . . . . . . 1 . . . . . . 6 9 Terminals 63 | . . 6 3 13 16 . . . . . . . . . . . . . 2 9 14 Fabricators 3 | . . . . . 1 . . . . . . . . . . . . . . . 2 Repair Stations . | . . . . . . . . . . . . . . . . . . . . . . Recycling Units . | . . . . . . . . . . . . . . . . . . . . . . Scanalyzers . | . . . . . . . . . . . . . . . . . . . . . . Garrison Access . | . . . . . . . . . . . . . . . . . . . . . . Terminal Hacks 45 | . . . . 3 4 1 . . . . 11 2 5 . . 1 1 4 2 4 7 Record 22 | . . . . 1 1 . . . . . 11 1 . . . . . 2 2 2 2 Part Schematic 6 | . . . . . 1 . . . . . . . 5 . . . . . . . . Open Door 7 | . . . . 1 . 1 . . . . . 1 . . . 1 1 2 . . . Level Access Points 1 | . . . . 1 . . . . . . . . . . . . . . . . . Branch Access Points 1 | . . . . . 1 . . . . . . . . . . . . . . . . Terminal Index 2 | . . . . . 1 . . . . . . . . . . . . . . 1 . Alert Level 2 | . . . . . . . . . . . . . . . . . . . . . 2 Unreport Threat 3 | . . . . . . . . . . . . . . . . . . . . 1 2 Maintenance Status 1 | . . . . . . . . . . . . . . . . . . . . . 1 Fabricator Hacks 3 | . . . . . 1 . . . . . . . . . . . . . . . 2 Network Status 1 | . . . . . 1 . . . . . . . . . . . . . . . . Load Schematic 1 | . . . . . . . . . . . . . . . . . . . . . 1 Build 1 | . . . . . . . . . . . . . . . . . . . . . 1 Repair Station Hacks . | . . . . . . . . . . . . . . . . . . . . . . Recycling Unit Hacks . | . . . . . . . . . . . . . . . . . . . . . . Scanalyzer . | . . . . . . . . . . . . . . . . . . . . . . Garrison Access Hacks . | . . . . . . . . . . . . . . . . . . . . . . Unauthorized Hacks 27 | . . 4 2 5 6 . . . . . . . . . . . . . . 5 5 Terminals 27 | . . 4 2 5 6 . . . . . . . . . . . . . . 5 5 Track 11 | . . 2 1 2 2 . . . . . . . . . . . . . . 2 2 Assimilate 1 | . . . . . . . . . . . . . . . . . . . . . 1 Botnet 12 | . . 2 1 2 2 . . . . . . . . . . . . . . 3 2 Operators 3 | . . . . 1 2 . . . . . . . . . . . . . . . . Fabricators . | . . . . . . . . . . . . . . . . . . . . . . Repair Stations . | . . . . . . . . . . . . . . . . . . . . . . Recycling Units . | . . . . . . . . . . . . . . . . . . . . . . Scanalyzers . | . . . . . . . . . . . . . . . . . . . . . . Garrison Access . | . . . . . . . . . . . . . . . . . . . . . . Data Cores Recovered . | . . . . . . . . . . . . . . . . . . . . . . Used . | . . . . . . . . . . . . . . . . . . . . . . Hacking Detections 13 | . . 2 1 1 4 . . . . . . . . . . . . . . 3 2 Full Trace Events . | . . . . . . . . . . . . . . . . . . . . . . Feedback Events . | . . . . . . . . . . . . . . . . . . . . . . Feedback Blocked . | . . . . . . . . . . . . . . . . . . . . . . Robot Schematics Acquired . | . . . . . . . . . . . . . . . . . . . . . . Robots Built . | . . . . . . . . . . . . . . . . . . . . . . Matter . | . . . . . . . . . . . . . . . . . . . . . . Time . | . . . . . . . . . . . . . . . . . . . . . . Total Robot Build Rating . | . . . . . . . . . . . . . . . . . . . . . . Part Schematics Acquired 6 | . . . . . 1 . . . . . . . 5 . . . . . . . . Parts Built 1 | . . . . . . . . . . . . . . . . . . . . . 1 Matter 168 | . . . . . . . . . . . . . . . . . . . . . 168 Time 42 | . . . . . . . . . . . . . . . . . . . . . 42 Total Part Build Rating 4 | . . . . . . . . . . . . . . . . . . . . . 4 Parts Repaired . | . . . . . . . . . . . . . . . . . . . . . . Time . | . . . . . . . . . . . . . . . . . . . . . . Parts Recycled . | . . . . . . . . . . . . . . . . . . . . . . Recycled Matter . | . . . . . . . . . . . . . . . . . . . . . . Retrieved Matter . | . . . . . . . . . . . . . . . . . . . . . . Retrieved Components . | . . . . . . . . . . . . . . . . . . . . . . Parts Scanalyzed . | . . . . . . . . . . . . . . . . . . . . . . Part Schematics Acquired . | . . . . . . . . . . . . . . . . . . . . . . Parts Damaged . | . . . . . . . . . . . . . . . . . . . . . . Bothacking | -11 -10 -9 -8 -8 -7 -7 -7 -7 -6 -6 -6 -6 -6 -5 -5 -5 -5 -5 -4 -4 -4 ------------ Run | Scr Mat Mat Mat Sto Fac Low Low Dat Pro Fac Low Low Zio Pro Fac Upp Upp War Pro Fac Arm Used RIF Installer . | . . . . . . . . . . . . . . . . . . . . . . Robots Hacked . | . . . . . . . . . . . . . . . . . . . . . . Non-combat . | . . . . . . . . . . . . . . . . . . . . . . Combat . | . . . . . . . . . . . . . . . . . . . . . . Robot Hacks Applied . | . . . . . . . . . . . . . . . . . . . . . . Relay Couplers Released . | . . . . . . . . . . . . . . . . . . . . . . Robots Rewired . | . . . . . . . . . . . . . . . . . . . . . . Allies Hacked . | . . . . . . . . . . . . . . . . . . . . . . Hacks Repelled . | . . . . . . . . . . . . . . . . . . . . . . Allies | -11 -10 -9 -8 -8 -7 -7 -7 -7 -6 -6 -6 -6 -6 -5 -5 -5 -5 -5 -4 -4 -4 -------- Run | Scr Mat Mat Mat Sto Fac Low Low Dat Pro Fac Low Low Zio Pro Fac Upp Upp War Pro Fac Arm Total Allies 1 | . . . . . . . . . . . . . . . . . . . . . 1 Largest Group 1 | . . . . . . . . . . . . . . . . . . . . . 1 Highest-Rated Group 26 | . . . . . . . . . . . . . . . . . . . . . 26 Highest-Rated Ally 26 | . . . . . . . . . . . . . . . . . . . . . 26 Total Orders 3 | . . . . . . . . . . 3 . . . . . . . . . . . EXPLORE 3 | . . . . . . . . . . 3 . . . . . . . . . . . Ally Attacks . | . . . . . . . . . . . . . . . . . . . . . . Total Damage . | . . . . . . . . . . . . . . . . . . . . . . Kills . | . . . . . . . . . . . . . . . . . . . . . . Allies Corrupted . | . . . . . . . . . . . . . . . . . . . . . . Allies Melted . | . . . . . . . . . . . . . . . . . . . . . . Intel | -11 -10 -9 -8 -8 -7 -7 -7 -7 -6 -6 -6 -6 -6 -5 -5 -5 -5 -5 -4 -4 -4 ------- Run | Scr Mat Mat Mat Sto Fac Low Low Dat Pro Fac Low Low Zio Pro Fac Upp Upp War Pro Fac Arm Robot Analysis Total 115 | . . . . . . . . 115 . . . . . . . . . . . . . Derelict Logs Recovered 11 | . . . . . . 1 2 . 1 . 2 2 . 1 . 1 . . 1 . . Drone Launches 4 | . . . . . . . . . . 4 . . . . . . . . . . . Drone Recoveries . | . . . . . . . . . . . . . . . . . . . . . . Exploration | -11 -10 -9 -8 -8 -7 -7 -7 -7 -6 -6 -6 -6 -6 -5 -5 -5 -5 -5 -4 -4 -4 ------------- Run | Scr Mat Mat Mat Sto Fac Low Low Dat Pro Fac Low Low Zio Pro Fac Upp Upp War Pro Fac Arm Turns Passed 6494 | 16 87 90 189 121 776 373 188 261 435 157 282 488 329 206 131 684 412 590 228 201 250 Spaces Moved 10108 | 33 150 149 336 189 1219 559 419 96 584 244 373 586 834 510 272 734 606 956 471 405 383 Core 446 | 33 150 18 2 43 . 86 . . . . . 20 . . . . . . . . 94 Treads . | . . . . . . . . . . . . . . . . . . . . . . Legs . | . . . . . . . . . . . . . . . . . . . . . . Wheels . | . . . . . . . . . . . . . . . . . . . . . . Hover . | . . . . . . . . . . . . . . . . . . . . . . Flight 9662 | . . 131 334 146 1219 473 419 96 584 244 373 566 834 510 272 734 606 956 471 405 289 Fastest Speed 34 | 50 50 40 40 35 35 35 35 35 35 35 35 35 34 34 34 37 37 37 37 37 37 Average Speed 37 | 50 50 42 40 38 35 45 35 35 35 35 35 37 34 34 36 37 37 37 37 37 40 Slowest Speed 130 | 50 50 120 50 50 35 100 35 35 35 35 35 100 35 34 37 37 37 37 37 37 130 Overloaded Moves . | . . . . . . . . . . . . . . . . . . . . . . Propulsion Burnouts . | . . . . . . . . . . . . . . . . . . . . . . Robots Hopped 7 | . . . . 1 1 . . . . . . . . . . . . 4 . 1 . Cave-ins Triggered . | . . . . . . . . . . . . . . . . . . . . . . Exploration Rate (%) 49 | 3 27 21 30 41 40 73 67 71 65 13 56 77 84 68 11 77 59 90 67 19 19 Regions Visited 21 Branch Regions 14 Pre-discovered Areas 31 | . . . . . . . . 27 . . 2 1 1 . . . . . . . . Known Exits Taken 17 | . . . . 1 1 1 1 1 1 1 1 1 1 1 1 1 1 1 1 1 . Unknown Exits Taken 4 | 1 1 1 1 . . . . . . . . . . . . . . . . . . Scrap Searched 17 | . . . . . . 3 1 . . . 3 2 2 . . 4 1 . 1 . . Spaces Dug 146 | . . 2 13 14 25 . . 13 11 10 . 8 . 5 9 6 11 . 2 14 3 Terrain Destroyed 421 | . . 21 13 14 25 . . 13 16 10 . 57 . 43 9 16 59 . 12 90 23 Melee 146 | . . 2 13 14 25 . . 13 11 10 . 8 . 5 9 6 11 . 2 14 3 Projectile . | . . . . . . . . . . . . . . . . . . . . . . AOE 275 | . . 19 . . . . . . 5 . . 49 . 38 . 10 48 . 10 76 20 Actions | -11 -10 -9 -8 -8 -7 -7 -7 -7 -6 -6 -6 -6 -6 -5 -5 -5 -5 -5 -4 -4 -4 --------- Run | Scr Mat Mat Mat Sto Fac Low Low Dat Pro Fac Low Low Zio Pro Fac Upp Upp War Pro Fac Arm Total 12586 | 32 161 165 366 211 1527 676 459 306 800 304 523 842 877 533 291 1133 774 1187 520 436 463 Wait 2168 | . 2 8 10 4 261 107 41 192 203 46 147 234 34 15 4 384 145 235 45 7 44 Move 10074 | 32 149 148 335 186 1216 558 418 95 583 243 372 585 833 509 271 733 605 948 470 402 383 Hop 6 | . . . . 1 1 . . . . . . . . . . . . 3 . 1 . Pick Up 17 | . 3 . 1 . 4 1 . 1 . 1 1 1 . . . 1 1 . . 1 1 Fast Attach 43 | . 3 1 3 4 8 2 . 1 . . 1 4 6 . 3 . . . . 3 4 Attach 10 | . . 1 1 1 1 1 . . . 1 . 1 . . 1 . . . . . 2 Detach 5 | . 2 1 . . . . . . . . . . . . 1 . . . . . 1 Swap 24 | . . . . . 1 . . . 2 1 1 1 . 2 . 2 8 . 2 1 3 Drop 35 | . 1 . 1 . 9 3 . 1 . . 1 4 4 . 1 1 1 . . 3 5 Fire 18 | . . 2 . . . . . . 1 . . 3 . 2 . 1 3 . 1 3 2 Melee 175 | . . 4 15 15 26 4 . 16 11 10 . 9 . 5 10 11 11 . 2 15 11 Ram 8 | . 1 . . . . . . . . . . . . . . . . . . . 7 Kick . | . . . . . . . . . . . . . . . . . . . . . . Crush . | . . . . . . . . . . . . . . . . . . . . . . Escape Stasis . | . . . . . . . . . . . . . . . . . . . . . . Rewire 1 | . . . . . . . . . . . . . . . . . . 1 . . . Trap . | . . . . . . . . . . . . . . . . . . . . . . Miscellaneous 2 | . . . . . . . . . . 2 . . . . . . . . . . . Route ------- -11/Scrapyard -10/Materials -9/Materials -8/Materials -8/Storage -7/Factory (discovered 3 exits: *Fac / *Low x2) -7/Lower Caves -7/Lower Caves (discovered 2 exits: *Fac / *Dat) -7/Data Miner -6/Proximity Caves -6/Factory -6/Lower Caves -6/Lower Caves -6/Zion -5/Proximity Caves -5/Factory (discovered 2 exits: *Upp x2) -5/Upper Caves -5/Upper Caves -5/Warlord -4/Proximity Caves -4/Factory -4/Armory History --------- Turn | Location | Event 3 | -11/Scrapyard | Discovered new exit (range 15) 17 | -11/Scrapyard | Entered Materials 99 | -10/Materials | Discovered new exit (range 11) 104 | -10/Materials | Entered another Materials area 104 | -9/Materials | Evolved 2 slots: Utility x2 187 | -9/Materials | Discovered new exit (range 10) 194 | -9/Materials | Entered another Materials area 194 | -8/Materials | Evolved 2 slots: Utility x2 300 | -8/Materials | Build established: Mutant 375 | -8/Materials | Discovered new exit (range 15) 383 | -8/Materials | Entered Storage 433 | -8/Storage | Identified exit to Factory 504 | -8/Storage | Entered Factory 504 | -7/Factory | Evolved 2 slots: Utility x2 711 | -7/Factory | Build established: Hacker-Mutant 987 | -7/Factory | Assembled infested ambush trap array 1151 | -7/Factory | Identified exit to Lower Caves 1170 | -7/Factory | Discovered new exit (range 15) 1280 | -7/Factory | Entered Lower Caves 1574 | -7/Lower Caves | Encountered a Warlord checkpoint 1630 | -7/Lower Caves | Spotted B-75 Beast 1631 | -7/Lower Caves | Learned Factory stockpile data 1638 | -7/Lower Caves | Discovered new exit (range 5) 1641 | -7/Lower Caves | Identified exit to Lower Caves 1653 | -7/Lower Caves | Entered another Lower Caves area 1668 | -7/Lower Caves | Discovered new exit (range 10) 1684 | -7/Lower Caves | Learned Factory emergency access door positions 1705 | -7/Lower Caves | Spotted B-75 Beast 1716 | -7/Lower Caves | Learned location of 1 exit from Proximity Caves 1779 | -7/Lower Caves | Build established: Hacker-Scout 1836 | -7/Lower Caves | Discovered new exit (range 14) 1840 | -7/Lower Caves | Identified exit to Data Miner 1841 | -7/Lower Caves | Entered Data Miner 1841 | -7/Data Miner | Discovered new exit (range 6) 2038 | -7/Data Miner | Met Data Miner 2051 | -7/Data Miner | Destroyed Data Miner 2053 | -7/Data Miner | Interfaced with the Data Conduit 2054 | -7/Data Miner | Found Prototype Hackware 2056 | -7/Data Miner | Found Prototype Hackware 2056 | -7/Data Miner | Identified System Mapper 2101 | -7/Data Miner | Identified exit to Proximity Caves 2102 | -7/Data Miner | Entered Proximity Caves 2103 | -6/Proximity Caves | Identified exit to Factory 2264 | -6/Proximity Caves | Spotted B-75 Beast 2516 | -6/Proximity Caves | Attracted the attention of an 0b10 checkpoint 2529 | -6/Proximity Caves | Learned 8 Factory zone layouts 2537 | -6/Proximity Caves | Entered Factory 2537 | -6/Factory | Evolved 2 slots: Propulsion x1, Utility x1 2537 | -6/Factory | Identified Quantum Router 2541 | -6/Factory | Loaded intel: 260 machine locations 2657 | -6/Factory | Discovered new exit (range 18) 2694 | -6/Factory | Identified exit to Lower Caves 2694 | -6/Factory | Entered Lower Caves 2814 | -6/Lower Caves | Build established: Wizard-Scout 2832 | -6/Lower Caves | Learned location of 1 exit from Factory 2833 | -6/Lower Caves | Learned location of 1 exit from Research 2833 | -6/Lower Caves | Learned 8 Research zone layouts 2833 | -6/Lower Caves | Learned Factory trap positions 2833 | -6/Lower Caves | Learned Research trap positions 2833 | -6/Lower Caves | Learned Research emergency access door positions 2833 | -6/Lower Caves | Learned Extension stockpile data 2906 | -6/Lower Caves | Discovered new exit (range 7) 2908 | -6/Lower Caves | Identified exit to Lower Caves 2976 | -6/Lower Caves | Entered another Lower Caves area 2995 | -6/Lower Caves | Learned Factory terminal intel 3119 | -6/Lower Caves | Found Alien Artifact 3119 | -6/Lower Caves | Identified Dimensional Node Initializer 3119 | -6/Lower Caves | Initialized slip node 3449 | -6/Lower Caves | Discovered new exit (range 12) 3453 | -6/Lower Caves | Identified exit to Zion 3464 | -6/Lower Caves | Entered Zion 3505 | -6/Zion | System corruption cleaned by Quarantine Array 3528 | -6/Zion | Learned Factory emergency access door positions 3560 | -6/Zion | Found Exp. Armor Integrity Analyzer 3605 | -6/Zion | Loaded intel: 6 derelict terminal locations 3623 | -6/Zion | Received a visual enhancement algorithm 3771 | -6/Zion | Discovered new exit (range 12) 3790 | -6/Zion | Identified exit to Proximity Caves 3793 | -6/Zion | Entered Proximity Caves 3829 | -5/Proximity Caves | Attracted the attention of an 0b10 checkpoint 3981 | -5/Proximity Caves | Discovered new exit (range 11) 3994 | -5/Proximity Caves | Identified exit to Factory 3999 | -5/Proximity Caves | Entered Factory 3999 | -5/Factory | Evolved 2 slots: Utility x2 4000 | -5/Factory | Identified exit to Upper Caves 4001 | -5/Factory | Loaded intel: 93 trap records 4003 | -5/Factory | Loaded intel: 279 machine locations 4004 | -5/Factory | Loaded intel: 21 terminal locations 4065 | -5/Factory | Build established: Hacker-Scout 4075 | -5/Factory | Discovered exit to Upper Caves (range 15) 4120 | -5/Factory | Intercept squad dispatched 4130 | -5/Factory | Entered Upper Caves 4132 | -5/Upper Caves | Learned 4 Factory zone layouts 4799 | -5/Upper Caves | Discovered new exit (range 4) 4801 | -5/Upper Caves | Identified exit to Upper Caves 4814 | -5/Upper Caves | Entered another Upper Caves area 5185 | -5/Upper Caves | Discovered new exit (range 16) 5192 | -5/Upper Caves | Identified exit to Warlord 5226 | -5/Upper Caves | Entered Warlord 5404 | -5/Warlord | Met Warlord 5429 | -5/Warlord | Warlord's base attacked by MAIN.C 5732 | -5/Warlord | Opened side exit 5736 | -5/Warlord | Spotted B-86 Titan 5779 | -5/Warlord | Warlord forces counterattacked 5813 | -5/Warlord | Discovered new exit (range 9) 5815 | -5/Warlord | Identified exit to Proximity Caves 5816 | -5/Warlord | Entered Proximity Caves 5922 | -4/Proximity Caves | Learned Research non-interactive machine intel 6005 | -4/Proximity Caves | Discovered new exit (range 4) 6005 | -4/Proximity Caves | Identified exit to Factory 6044 | -4/Proximity Caves | Entered Factory 6044 | -4/Factory | Evolved 2 slots: Utility x2 6045 | -4/Factory | Identified exit to Armory 6047 | -4/Factory | Loaded intel: 218 machine locations 6245 | -4/Factory | Entered Armory 6246 | -4/Armory | Loaded intel: 75 machine locations 6271 | -4/Armory | Spotted B-86 Titan 6284 | -4/Armory | Found Adv. Force Booster 6297 | -4/Armory | Fabricated Lrn. Sensor Array? 6395 | -4/Armory | Intercept squad dispatched 6410 | -4/Armory | Spotted Tracker 6411 | -4/Armory | Spotted Tracker 6421 | -4/Armory | Destroyed Tracker 6438 | -4/Armory | Destroyed Tracker 6443 | -4/Armory | Spotted Combat Programmer 6451 | -4/Armory | Core integrity fell below 50% 6480 | -4/Armory | Core integrity fell below 20% 6485 | -4/Armory | System corruption reached 10% 6492 | -4/Armory | Spotted Combat Programmer 6495 | -4/Armory | Destroyed by Combat Programmer with EMDS Last Messages --------------- 06452_ Penetrated by EMDS Slug. 06452_ Adv. Hacking Suite destroyed. 06452_ Exp. Armor Integrity Analyzer destroyed. 06452_ Imp. Melee Analysis Suite destroyed. 06452_ Y-64 Sentinel suffers critical hit. 06452_ Y-64 Sentinel destroyed. 06460_ EMDS Slug penetrates Wall. 06474_ Quantum Router destroyed. 06476_ Slammed into S-27 Virus. 06479_ Penetrated by EMDS Slug. 06479_ Chain reaction triggered in Lgt. Nuclear Core. 06479_ S-27 Virus destroyed. 06480_ Acquired VTOL Module. 06481_ Penetrated by EMDS Slug. 06481_ VTOL Module destroyed. 06481_ Adv. Signal Interpreter destroyed. 06482_ Slammed into Combat Programmer. 06483_ Penetrated by EMDS Slug. 06483_ Slammed into Combat Programmer. 06492_ Connecting with Terminal... Map ----- +----------------------------------------------------+ | ?????#### # # """ ## #????? | | ????????# # # ## #????? | | ????????# # ##+##### #????? | | ????????# # ??# # #????? | | ????????# ? # #????? | | ????????# ] "" ?### # #????# | | ??????###+### "F"" #??## ## #????? | | ??????# # """" BB??# ## #????? | | ??????#! !!=# BB??# ## ##???? | | ####### !!=# #???# ?# #???? | | ##! !! # #### #####+##+## ##??? | | ######## #?## # # #???? | | #??# + # #???? | | ### #####/####### # """""" # #???? | | #?# #### ??+ # "!"" " + #???? | | ######?# # ## # # "[""*" # #???? | | ??????##[# ## # # "=|*|" # #???? | | ??????#"%= ## """" + # " """" # #???? | | ?????##"%" ## "??" ## + + #???? | | ?????# "%"### "??"?## ###########+#####? | | ?# ###[#### "??"??# #????#?# #? | | % / """"??# #??????# #? | | ?#! ## # # ## #??????# #? | | ??????# # ######### ######## """#? | | ??????# # pp + !! """#? | | ??????##### ###### @ # !! !"#? | | ??????????# s# # # "F"#? | | ??????????# + p" p + """#? | | #?????????###### T ############### #? | | ???????????????# " #?????????????##########? | | ???????????????#! #????????????????#??????? | | ???????????????######???????????????????#???? | | ????????????????????????#????????????????#??? | | | | | | | | | | | | | | | | | | | | | | | | | | | | | | | | | | | +----------------------------------------------------+ Best States ------------- Heat Dissipation 43 Energy Generation 18 Energy Capacity 170 Matter Stores 300 Matter Capacity 300 Sight Range 16 Robot Scan Range 20 Terrain Scan Range 20 Terrain Scan Density 10 Power Amplification 30 Additional Mass Support 9 Armor Coverage 375 Evasion (%) 76 Targeting Accuracy 5 Melee Accuracy 22 Core Analysis 6 Armor Integrity Analysis 90 Offensive Hacking 34 Defensive Hacking 37 Item Schematics ----------------- Lrn. Sensor Array | -7/Factory | Hacked Riot Gun | -6/Zion | Free Battle Rifle | -6/Zion | Free Battle Cannon | -6/Zion | Free Slug Cannon | -6/Zion | Free Plasma Flamer | -6/Zion | Free Robot Schematics ------------------ None Fabricated ------------ Lrn. Sensor Array | x1 | -4/Armory Alien Tech Used ----------------- Dimensional Node Initializer Achievements -------------- Fist Fight Quick And Dirty Challenges ------------ None Game ------ Seed RagnarokCouplerMatrix Manual? 0 Play Time 02:03:55 Cumulative 25.1 hours Start 2020.08.29 @ 20:55:07 End 2020.08.29 @ 23:03:08 Sessions 1 Manual Loads 0 Difficulty Rogue Special Mode None Game No. 11 Rogue 11 Adventurer 0 Explorer 0 Win Type - Total 1 Types 0/0/1/0/0/0/0 Lore% 20 Gallery% 41 Achievement% 31 Wizard Run 0 Options --------- ASCII 0 Keyboard 0 Movement Mouse Keybinds 0 Fullscreen 2 Font 18/SmallcapsGlow Map View 76x50 Tactical HUD 1 Map Filters NONE Filters NONE Steam 0 RUN: c1593628-e847-407f-983f-4291d2acd03e